bitfinex/quotes_BTCUSD_20220201
["timestamp","ask_amount","ask_price","bid_price","bid_amount"]
[1643726087190,0.00127379,38955.0,38947.0,0.00161391]
[1643726087389,0.00127379,38955.0,38948.0,0.348787]
[1643726087593,0.00127379,38955.0,38949.0,0.23423363]
[1643726087792,0.00127379,38955.0,38950.0,0.348787]
[1643726087994,0.00636139,38961.0,38952.0,0.18897246]
[1643726088293,0.002534,38961.0,38954.0,0.03639859]
[1643726088498,0.00019114,38979.0,38955.0,0.91953455]
[1643726088697,0.00019114,38985.0,38964.0,0.1]
[1643726088901,0.25675114,38985.0,38965.0,0.61677912]
[1643726089090,0.25675114,38985.0,38984.0,0.3066194]
[1643726089292,0.00037546,38987.0,38984.0,0.3066194]
[1643726089503,1.549,39009.0,38986.0,1.25]
[1643726089504,0.012634,39000.0,38986.0,1.25]
[1643726089698,0.012634,39000.0,38988.0,0.1]
[1643726089699,0.097244,38999.0,38988.0,0.1]
[1643726089894,1.0,39009.0,38990.0,1.48527069]
[1643726090095,0.00118042,39015.0,38999.0,0.17152804]
[1643726090096,0.25156,39008.0,38999.0,0.17152804]
[1643726090392,0.25156,39008.0,39006.0,0.40441306]
[1643726090643,0.00118042,39015.0,39007.0,0.348787]
[1643726090851,0.0013686,39031.0,39009.0,1.25]
[1643726091151,0.031882,39030.0,39011.0,1.5728819]
[1643726091375,0.144,39049.0,39021.0,0.05]
[1643726091376,0.05,39049.0,39021.0,0.05]
[1643726091545,0.008981,39048.0,39024.0,0.0625]
[1643726091752,0.099982,39045.0,39028.0,0.33911832]
[1643726092045,0.008981,39055.0,39044.0,0.149]
[1643726092346,0.008981,39055.0,39027.0,0.05]
[1643726092347,0.16990899,39039.0,39031.0,0.22049212]
[1643726092544,1.25,39044.0,39025.0,0.0375]
[1643726092545,0.146,39032.0,39025.0,0.0375]
[1643726092745,0.00744056,39051.0,39031.0,0.005]
[1643726092946,0.00744056,39051.0,39050.0,0.005]
[1643726093145,0.00744056,39051.0,39044.0,0.005]
[1643726093146,0.01978,39051.0,39044.0,0.005]
[1643726093344,1.25,39049.0,39033.0,0.005]
[1643726093544,0.56927912,39048.0,39034.0,0.0475]
[1643726093852,0.56927912,39048.0,39021.0,0.5]
[1643726093853,0.00128,39058.0,39033.0,1.25]
[1643726094046,0.00073113,39065.0,39048.0,1.25]
[1643726094245,0.00073113,39065.0,39024.0,0.0061664]
[1643726094246,0.04804325,39060.0,39024.0,0.0061664]
[1643726094493,0.00125787,39046.0,39028.0,0.005]
[1643726094689,0.00125787,39046.0,39031.0,0.005]
[1643726094891,0.00125787,39046.0,39025.0,0.5]
[1643726094892,0.00125787,39046.0,39032.0,0.348787]
[1643726095091,0.00125787,39046.0,39033.0,0.0340892]
[1643726095290,0.04804325,39062.0,39032.0,0.42]
[1643726095291,0.22049212,39061.0,39032.0,0.42]
[1643726095491,0.22049212,39061.0,39033.0,0.005]
[1643726095492,0.13016653,39049.0,39033.0,0.005]
[1643726095691,0.13016653,39049.0,39034.0,0.04599006]
[1643726095692,0.00125787,39041.0,39034.0,0.04599006]
[1643726095898,0.02564,39062.0,39034.0,0.04599006]
[1643726095899,0.00073113,39065.0,39040.0,0.005]
[1643726096094,0.05,39068.0,39042.0,1.1]
[1643726096292,0.02,39070.0,39048.0,0.00645675]
[1643726096494,0.2967872,39068.0,39050.0,0.00645675]
[1643726096693,0.2967872,39068.0,39043.0,0.25986766]
[1643726096891,0.2967872,39068.0,39043.0,0.22049212]
[1643726096892,0.10389378,39057.0,39043.0,0.22049212]
[1643726097095,0.09354325,39061.0,39036.0,0.00426]
[1643726097296,0.16039044,39065.0,39034.0,0.22694887]
[1643726097297,0.09354325,39054.0,39034.0,0.22694887]
[1643726097493,0.09354325,39054.0,39032.0,0.925]
[1643726097494,0.04354325,39053.0,39033.0,0.22049212]
[1643726097692,0.04354325,39053.0,39032.0,0.92]
[1643726097693,0.04354325,39049.0,39032.0,0.92]
[1643726097891,0.05,39050.0,39032.0,0.92]
[1643726097892,0.13020072,39036.0,39032.0,0.92]
[1643726098144,0.02564,39056.0,39032.0,0.92]
[1643726098145,0.09843952,39047.0,39033.0,0.348787]
[1643726098342,0.09843952,39047.0,39033.0,0.22049212]
[1643726098343,0.0741787,39041.0,39033.0,0.22049212]
[1643726098545,0.16977,39047.0,39032.0,0.42]
[1643726098745,0.30630069,39038.0,39023.0,0.00645675]
[1643726098946,0.30630069,39038.0,39021.0,0.51]
[1643726098947,0.22049212,39037.0,39021.0,0.51]
[1643726099152,0.348787,39036.0,39021.0,0.53722056]
[1643726099347,0.14126861,39043.0,39027.0,0.00645675]
[1643726099547,0.128111,39053.0,39021.0,0.92217781]
[1643726099548,0.05,39050.0,39030.0,0.00645675]
[1643726099747,0.05,39050.0,39028.0,0.02504826]
[1643726099748,0.09354325,39045.0,39028.0,0.02504826]
[1643726099948,0.09354325,39036.0,39028.0,0.02504826]
[1643726100146,0.26595282,39034.0,39028.0,0.02504826]
[1643726100351,0.26595282,39034.0,39021.0,0.01]
[1643726100352,0.04354325,39029.0,39021.0,0.01]
[1643726100551,0.04354325,39029.0,39006.0,0.03866]
[1643726100552,0.07960351,39013.0,39008.0,0.5]
[1643726100753,0.43147612,39009.0,39006.0,0.03866]
[1643726100947,0.0431,39012.0,39009.0,0.91313503]
[1643726101148,0.25498936,39023.0,39006.0,0.03866]
[1643726101355,0.0431,39018.0,39007.0,0.22049212]
[1643726101548,0.0501907,39028.0,39007.0,0.22049212]
[1643726101549,0.0001907,39028.0,39009.0,0.00181498]
[1643726101752,0.37855335,39024.0,39014.0,0.02373204]
[1643726102009,0.02031896,39017.0,39014.0,0.02373204]
[1643726102309,0.42,39024.0,39014.0,0.02373204]
[1643726102512,0.09523337,39017.0,39007.0,0.22049212]
[1643726102711,0.03772471,39022.0,39014.0,0.00181483]
[1643726102912,0.348787,39021.0,39014.0,0.00181483]
[1643726103111,0.0431,39036.0,39014.0,0.01327158]
[1643726103309,0.11022023,39027.0,39014.0,0.28166137]
[1643726103509,0.11022023,39027.0,39014.0,0.00181483]
[1643726103510,0.41736422,39027.0,39014.0,0.00181483]
[1643726103710,0.41736422,39027.0,39006.0,0.03866]
[1643726103711,0.09889837,39021.0,39006.0,0.03866]
[1643726103912,0.09889837,39021.0,39011.0,0.27657876]
[1643726103913,0.01979882,39019.0,39011.0,0.27657876]
[1643726104213,0.46736422,39027.0,39012.0,0.01145675]
[1643726104214,0.05,39023.0,39012.0,0.01145675]
[1643726104416,0.05,39023.0,39010.0,0.01227529]
[1643726104417,1.25,39021.0,39004.0,0.00175675]
[1643726104612,0.30832093,39013.0,39004.0,0.0011]
[1643726104813,0.34066662,39012.0,39004.0,0.0011]
[1643726105012,0.348787,39011.0,39004.0,0.0011]
[1643726105211,0.08183682,39005.0,39004.0,0.0011]
[1643726105412,1.25,39008.0,38989.0,0.0011]
[1643726105656,0.15124013,39000.0,38989.0,0.0011]
[1643726105845,0.05,39005.0,38989.0,0.0011]
[1643726106047,1.364,39019.0,38989.0,0.0011]
[1643726106048,0.0431,39010.0,38989.0,0.0011]
[1643726106247,0.0431,39010.0,39002.0,0.01227529]
[1643726106445,0.0431,39010.0,38999.0,0.01227529]
[1643726106847,0.348787,39009.0,38999.0,0.01227529]
[1643726107050,0.0431,39009.0,39007.0,0.24956595]
[1643726107446,0.0431,39009.0,38999.0,0.01227529]
[1643726107647,0.0431,39009.0,39006.0,0.00180951]
[1643726108249,0.348787,39008.0,39006.0,0.00180951]
[1643726108447,0.22322827,39014.0,39006.0,0.00180951]
[1643726108747,0.348787,39013.0,39005.0,0.00180954]
[1643726108947,0.348787,39014.0,39005.0,0.00180954]
[1643726109595,0.15779041,39009.0,39006.0,0.01227529]
[1643726109794,0.15779041,39009.0,38992.0,0.23342016]
[1643726109795,0.348787,39008.0,38992.0,0.23342016]
[1643726110091,0.15779041,39009.0,39008.0,0.00180946]
[1643726110092,0.52852646,39009.0,39008.0,0.00180946]
[1643726110291,0.52852646,39009.0,38989.0,0.0011]
[1643726110292,0.00179054,39008.0,39000.0,0.33]
[1643726110498,0.0431,39007.0,39000.0,0.33]
[1643726110691,0.0431,39007.0,39000.0,0.234]
[1643726110692,0.1,39003.0,39000.0,0.234]
[1643726110890,0.348787,39002.0,39000.0,0.234]
[1643726111291,1.7247085,39001.0,39000.0,0.234]
[1643726111492,0.8234955,39001.0,39000.0,0.234]
[1643726111892,1.12220587,39001.0,39000.0,0.234]
[1643726112097,1.25,39000.0,38989.0,0.0011]
[1643726112294,0.348787,38999.0,38989.0,0.0011]
[1643726112494,0.1233082,38992.0,38989.0,0.0011]
[1643726112700,0.348787,38991.0,38990.0,0.25647]
[1643726113255,0.25388757,38999.0,38990.0,0.41649529]
[1643726113457,0.01908,38994.0,38991.0,0.33282458]
[1643726113655,0.0431,38996.0,38992.0,0.25646]
[1643726113855,0.0431,38996.0,38992.0,0.50263]
[1643726114054,0.0431,38996.0,38989.0,0.00290778]
[1643726114055,1.25,38994.0,38989.0,0.00180778]
[1643726114256,1.37518198,38994.0,38993.0,0.25645]
[1643726114455,1.76706898,38994.0,38993.0,0.25645]
[1643726114659,1.25,38993.0,38971.0,0.02227529]
[1643726114855,1.25,38993.0,38992.0,0.00180769]
[1643726114856,1.55,38993.0,38992.0,0.00180769]
[1643726115055,1.941887,38993.0,38992.0,0.00180769]
[1643726115458,1.96274753,38993.0,38992.0,0.00180769]
[1643726115655,1.96274753,38993.0,38980.0,0.25654]
[1643726115656,2.05013544,38993.0,38980.0,0.25654]
[1643726115855,0.348787,38992.0,38991.0,0.00180772]
[1643726116259,0.05,38994.0,38993.0,0.28796189]
[1643726116557,0.0431,38998.0,38991.0,0.00180772]
[1643726116558,0.0931,38998.0,38991.0,0.00180772]
[1643726116758,0.0431,38998.0,38991.0,0.00180772]
[1643726116990,0.14399826,38994.0,38983.0,0.01227529]
[1643726117202,0.24801739,38994.0,38993.0,0.00180766]
[1643726117393,0.24801739,38994.0,38993.0,7.66e-06]
[1643726117394,0.49278526,38994.0,38993.0,7.66e-06]
[1643726117596,0.49278526,38994.0,38985.0,0.2565]
[1643726117796,0.08706796,38991.0,38969.0,0.25543782]
[1643726117994,0.08706796,38991.0,38959.0,0.42]
[1643726117995,0.70322904,38990.0,38964.0,0.01227529]
[1643726118193,0.1,38989.0,38964.0,0.01227529]
[1643726118393,0.1,38989.0,38960.0,0.0011]
[1643726118394,1.13082529,38980.0,38960.0,0.0011]
[1643726118596,0.348787,38980.0,38963.0,0.01227529]
[1643726118793,0.05,38980.0,38963.0,0.01227529]
[1643726118993,1.99803854,38980.0,38960.0,0.0011]
[1643726119195,1.25,38979.0,38960.0,0.0011]
[1643726119393,0.66476367,38978.0,38960.0,0.0011]
[1643726119594,0.39451901,38974.0,38960.0,0.0011]
[1643726119796,1.50874574,38972.0,38963.0,0.0011]
[1643726119992,1.50874574,38972.0,38971.0,0.36509]
[1643726119993,0.60368274,38972.0,38971.0,0.36509]
[1643726120196,0.87518858,38972.0,38971.0,0.36509]
[1643726120836,1.25,38971.0,38963.0,0.0011]
[1643726121040,1.65897551,38964.0,38963.0,0.0011]
[1643726121241,0.85340203,38964.0,38963.0,0.0011]
[1643726121441,0.348787,38964.0,38963.0,0.0011]
[1643726121638,0.107268,38973.0,38963.0,0.28070213]
[1643726121639,0.064168,38973.0,38963.0,0.28070213]
[1643726121837,0.0431,38975.0,38964.0,0.23788528]
[1643726122042,0.0431,38975.0,38963.0,0.27570213]
[1643726122239,0.348787,38974.0,38963.0,0.27570213]
[1643726122441,0.348787,38974.0,38964.0,0.23788528]
[1643726122640,0.1587762,38988.0,38968.0,0.01227529]
[1643726122641,0.064156,38982.0,38968.0,0.01227529]
[1643726122846,0.0001907,38991.0,38968.0,0.01227529]
[1643726123039,0.348787,38990.0,38968.0,0.01227529]
[1643726123237,0.348787,38990.0,38972.0,0.01227529]
[1643726123439,0.02174309,38982.0,38969.0,0.35249763]
[1643726123638,0.16504619,38980.0,38973.0,0.24329257]
[1643726123840,0.16504619,38980.0,38970.0,0.01227529]
[1643726124038,0.348787,38979.0,38963.0,0.06227529]
[1643726124237,0.58667228,38979.0,38959.0,0.05]
[1643726124794,0.08515333,38965.0,38963.0,0.01227529]
[1643726125099,0.348787,38964.0,38952.0,0.01337529]
[1643726125293,0.348787,38969.0,38959.0,0.01227529]
[1643726125494,0.25035644,38968.0,38962.0,0.00290491]
[1643726125694,0.348787,38967.0,38962.0,0.00290491]
[1643726126094,0.28528049,38970.0,38962.0,0.00290491]
[1643726126095,0.07402149,38964.0,38962.0,0.00290491]
[1643726126295,0.348787,38963.0,38962.0,0.00290491]
[1643726126598,0.348787,38964.0,38962.0,0.0011]
[1643726126798,1.25,38963.0,38961.0,0.00180495]
[1643726126995,0.14495733,38953.0,38952.0,0.0011]
[1643726127196,0.49374433,38953.0,38952.0,0.0011]
[1643726127794,0.49374433,38953.0,38949.0,0.33]
[1643726127996,0.448787,38952.0,38949.0,0.33]
[1643726128256,0.348787,38952.0,38949.0,0.33]
[1643726128455,0.33282659,38957.0,38949.0,0.33]
[1643726128456,0.35972232,38951.0,38949.0,0.33]
[1643726128854,0.23788528,38958.0,38949.0,0.33]
[1643726129053,0.348787,38957.0,38949.0,0.33]
[1643726129252,0.064191,38960.0,38949.0,0.33]
[1643726129253,0.074787,38959.0,38949.0,0.33]
[1643726129755,0.16622154,38962.0,38954.0,0.01227529]
[1643726129956,0.01896261,38955.0,38950.0,0.05]
[1643726130162,0.01896261,38955.0,38952.0,0.1]
[1643726130358,0.27149077,38971.0,38956.0,0.00180283]
[1643726130359,0.00125055,38967.0,38956.0,0.00180283]
[1643726130558,0.00125055,38967.0,38958.0,0.1]
[1643726130756,0.00125055,38967.0,38966.0,0.01227529]
[1643726130956,0.00125055,38967.0,38966.0,0.65213775]
[1643726131156,0.00125055,38967.0,38963.0,0.14078124]
[1643726131356,0.34785176,38977.0,38959.0,0.06227529]
[1643726131558,0.10441056,38969.0,38959.0,0.01407812]
[1643726131757,0.00125079,38968.0,38959.0,0.00180283]
[1643726131995,0.10485704,38963.0,38959.0,0.00180283]
[1643726132193,0.318723,38962.0,38959.0,0.00180283]
[1643726132495,0.00360566,38958.0,38950.0,0.239432]
[1643726132700,0.0968109,38951.0,38944.0,0.01227529]
[1643726132894,0.348615,38950.0,38944.0,0.01227529]
[1643726133093,0.348615,38950.0,38949.0,0.34227529]
[1643726133295,0.00360566,38958.0,38955.0,0.01227529]
[1643726133495,0.00360566,38958.0,38949.0,0.33]
[1643726133496,0.01923095,38956.0,38950.0,0.2902778]
[1643726133694,0.01923095,38956.0,38949.0,0.33]
[1643726133894,0.348615,38955.0,38949.0,0.33]
[1643726134294,0.08140107,38953.0,38949.0,0.33]
[1643726134495,0.00360566,38958.0,38954.0,0.01227529]
[1643726134794,0.00360566,38958.0,38950.0,0.239432]
[1643726134795,0.348615,38957.0,38950.0,0.239432]
[1643726134994,0.00360566,38958.0,38949.0,0.33]
[1643726135299,0.00360566,38958.0,38954.0,0.00180064]
[1643726135495,0.348615,38957.0,38954.0,0.00180064]
[1643726135741,0.00360566,38958.0,38954.0,0.00180064]
[1643726136140,0.00360566,38958.0,38952.0,0.24261808]
[1643726136342,0.00360566,38958.0,38954.0,0.00180064]
[1643726136641,0.348615,38957.0,38954.0,0.00180064]
[1643726136843,0.00360566,38958.0,38956.0,0.01227529]
[1643726137744,0.00360566,38958.0,38957.0,1.85874873]
[1643726137948,0.00360566,38958.0,38957.0,0.49848674]
[1643726138142,0.00360566,38958.0,38957.0,0.28835301]
[1643726138343,0.00360566,38958.0,38957.0,1.87671202]
[1643726138542,0.00360566,38958.0,38957.0,1.45786953]
[1643726138742,0.00360566,38958.0,38957.0,0.25786953]
[1643726138945,0.00360566,38958.0,38957.0,0.05]
[1643726139143,0.00360566,38958.0,38957.0,1.44105]
[1643726139386,0.00360566,38958.0,38957.0,1.49105]
[1643726139589,0.00360566,38958.0,38956.0,0.01407588]
[1643726139789,0.00360566,38958.0,38955.0,0.01227529]
[1643726139988,0.00360566,38958.0,38956.0,0.00180059]
[1643726140988,0.00360566,38958.0,38955.0,0.23523789]
[1643726140989,0.00360566,38958.0,38957.0,1.698615]
[1643726141188,5.66e-06,38958.0,38957.0,1.698615]
[1643726141389,0.0012552,38962.0,38957.0,1.748615]
[1643726141591,0.02175573,38962.0,38960.0,0.01227529]
[1643726141888,0.02175573,38962.0,38961.0,1.598615]
[1643726142091,0.02175573,38962.0,38961.0,0.348615]
[1643726142289,0.11902053,38962.0,38961.0,0.65333431]
[1643726142489,0.11902053,38962.0,38961.0,0.30471931]
[1643726142690,0.11902053,38962.0,38961.0,0.05]
[1643726142890,0.37558053,38962.0,38961.0,0.05]
[1643726143157,0.37558053,38962.0,38960.0,0.01227529]
[1643726143351,0.36409053,38962.0,38960.0,0.01227529]
[1643726144552,0.36409053,38962.0,38961.0,1.198615]
[1643726144750,0.36409053,38962.0,38961.0,0.9]
[1643726144952,0.34359,38962.0,38961.0,0.05]
[1643726145151,0.34359,38962.0,38960.0,0.01227529]
[1643726145758,0.34359,38962.0,38954.0,0.01227529]
[1643726145759,0.605175,38961.0,38954.0,0.01227529]
[1643726145952,0.605175,38961.0,38957.0,0.00180058]
[1643726146352,0.12709609,38959.0,38957.0,0.00180058]
[1643726146554,0.718106,38958.0,38957.0,0.00180058]
[1643726146751,1.19337115,38958.0,38957.0,0.00180058]
[1643726146986,0.07462731,38957.0,38949.0,0.34227529]
[1643726147186,1.19337115,38958.0,38949.0,0.33]
[1643726147187,0.35508,38956.0,38949.0,0.33]
[1643726147387,0.50286,38956.0,38950.0,0.05]
[1643726147887,0.50286,38956.0,38951.0,0.01227529]
[1643726148090,0.348615,38955.0,38951.0,0.01227529]
[1643726148291,0.348615,38955.0,38952.0,0.01227529]
[1643726148292,0.25656,38954.0,38952.0,0.01227529]
[1643726148488,0.25656,38954.0,38952.0,0.014076]
[1643726148489,0.35508,38954.0,38952.0,0.014076]
[1643726148987,0.16699115,38953.0,38952.0,0.00180071]
[1643726149187,0.42355115,38953.0,38952.0,0.00180071]
[1643726149387,0.605175,38953.0,38950.0,0.05]
[1643726149688,0.25656,38953.0,38951.0,0.00180074]
[1643726150288,0.25656,38953.0,38952.0,1.34122521]
[1643726150490,0.23675059,38953.0,38952.0,2.25151165]
[1643726150755,0.23675059,38953.0,38952.0,2.40151165]
[1643726150957,0.09852,38954.0,38952.0,2.25151165]
[1643726151154,0.064161,38976.0,38953.0,1.838047]
[1643726151353,0.2615791,38971.0,38953.0,1.489432]
[1643726151753,0.25656,38971.0,38970.0,0.01227529]
[1643726151953,0.605175,38971.0,38970.0,0.01227529]
[1643726152352,0.605175,38971.0,38959.0,0.239432]
[1643726152353,0.605175,38971.0,38966.0,0.01227529]
[1643726152560,0.313766,38970.0,38966.0,0.01227529]
[1643726152755,0.25656,38971.0,38966.0,0.01227529]
[1643726153154,0.25656,38971.0,38963.0,0.26487827]
[1643726153357,0.25656,38971.0,38966.0,0.01227529]
[1643726153558,0.27574795,38971.0,38964.0,0.22386455]
[1643726153756,0.27574795,38971.0,38970.0,0.01227529]
[1643726153958,0.001,38981.0,38970.0,0.01227529]
[1643726154154,0.001,38981.0,38966.0,0.16192851]
[1643726154155,0.348615,38980.0,38974.0,0.01227529]
[1643726154399,0.348615,38980.0,38969.0,0.21009597]
[1643726154599,0.64446594,38974.0,38968.0,0.04227529]
[1643726154800,0.313766,38973.0,38958.0,0.00117622]
[1643726155002,0.09601477,38968.0,38958.0,0.00117622]
[1643726155206,0.07951348,38962.0,38958.0,0.00117622]
[1643726155404,0.348615,38961.0,38945.0,0.064151]
[1643726155706,0.348615,38961.0,38958.0,0.0018024]
[1643726155707,0.33332811,38961.0,38958.0,0.0018024]
[1643726155905,0.348615,38960.0,38958.0,0.0018024]
[1643726156106,0.40045568,38959.0,38958.0,0.0018024]
[1643726156305,0.71422168,38959.0,38958.0,0.0018024]
[1643726156505,0.44722316,38959.0,38958.0,0.0018024]
[1643726156705,0.44722316,38959.0,38957.0,0.00180242]
[1643726156903,0.348615,38958.0,38957.0,0.00180242]
[1643726157104,0.313766,38961.0,38957.0,0.00180242]
[1643726157306,0.1,38960.0,38957.0,0.00180242]
[1643726157505,0.348615,38959.0,38957.0,0.00180242]
[1643726157707,0.313766,38961.0,38949.0,0.3311]
[1643726157907,0.38905655,38962.0,38957.0,0.00180242]
[1643726158148,0.348615,38961.0,38957.0,0.00180242]
[1643726158943,0.348615,38961.0,38952.0,0.23738292]
[1643726159143,0.48335626,38958.0,38957.0,0.0018024]
[1643726159343,0.56351582,38958.0,38957.0,0.0018024]
[1643726159843,0.81988584,38958.0,38957.0,0.0018024]
[1643726160046,1.62303476,38958.0,38957.0,0.0018024]
[1643726160245,1.2597283,38958.0,38949.0,0.3311]
[1643726160446,0.08257274,38950.0,38949.0,0.3311]
[1643726160748,0.08257274,38950.0,38946.0,0.0011]
[1643726160749,1.25,38949.0,38946.0,0.0011]
[1643726160947,0.348615,38948.0,38946.0,0.0011]
[1643726161250,0.27753698,38947.0,38946.0,0.0011]
[1643726161462,0.59130298,38947.0,38946.0,0.0011]
[1643726161890,0.59130298,38947.0,38945.0,0.00180276]
[1643726161891,1.25,38946.0,38942.0,0.0011]
[1643726162092,0.63512112,38945.0,38942.0,0.0011]
[1643726162292,0.34686251,38944.0,38942.0,0.0011]
[1643726162494,0.39446951,38944.0,38942.0,0.0011]
[1643726162692,0.313766,38944.0,38942.0,0.0011]
[1643726162900,0.01897953,38951.0,38942.0,0.0011]
[1643726163196,0.01897953,38951.0,38943.0,2.31115026]
[1643726163393,0.01897953,38951.0,38950.0,1.29250345]
[1643726163796,0.01897953,38951.0,38950.0,1.34250345]
[1643726163993,1.23945814,38973.0,38950.0,1.34250345]
[1643726163994,0.00062857,38955.0,38951.0,1.25]
[1643726164195,0.00062857,38955.0,38952.0,0.348615]
[1643726164393,0.00062857,38955.0,38952.0,0.63810572]
[1643726164794,0.00062857,38955.0,38952.0,0.05]
[1643726164992,0.14778,38957.0,38952.0,0.05]
[1643726165193,0.00125723,38955.0,38951.0,0.23949072]
[1643726165393,0.00125723,38955.0,38950.0,0.31148298]
[1643726165394,0.14565523,38955.0,38952.0,0.348615]
[1643726165641,0.14565523,38955.0,38950.0,0.31148298]
[1643726165838,0.40221523,38955.0,38950.0,0.31148298]
[1643726166237,0.400958,38955.0,38950.0,0.31148298]
[1643726166441,0.40221521,38955.0,38951.0,0.25016668]
[1643726166838,0.40221521,38955.0,38952.0,0.348615]
[1643726167138,0.40221521,38955.0,38953.0,0.23119492]
[1643726167339,0.400958,38955.0,38954.0,1.598615]
[1643726167639,0.40221523,38955.0,38950.0,0.26148298]
[1643726167840,0.14565523,38955.0,38950.0,0.01897953]
[1643726168442,0.14565523,38955.0,38951.0,0.348615]
[1643726168640,0.144398,38955.0,38952.0,0.23347673]
[1643726168839,0.00502817,38960.0,38954.0,1.25]
[1643726169043,0.00502817,38960.0,38955.0,0.60200981]
[1643726169240,0.001,38981.0,38957.0,1.25]
[1643726169502,0.5479,38984.0,38959.0,1.25]
[1643726169503,0.32492381,38984.0,38959.0,1.25]
[1643726169697,0.002,38989.0,38978.0,0.35607671]
[1643726169905,0.002,38989.0,38983.0,0.29156438]
[1643726170099,0.002,38989.0,38984.0,0.348615]
[1643726170299,0.002,38989.0,38983.0,0.34156438]
[1643726170500,0.002,38989.0,38984.0,0.348615]
[1643726170899,0.002,38989.0,38984.0,0.347615]
[1643726171099,0.002,38989.0,38983.0,0.05]
[1643726171100,0.002,38989.0,38985.0,0.0014]
[1643726171299,0.00063332,38987.0,38985.0,0.0014]
[1643726171499,0.07465165,38986.0,38985.0,0.0014]
[1643726171716,0.46563446,38986.0,38985.0,0.0014]
[1643726171898,2.01558854,38985.0,38968.0,0.0039]
[1643726172104,0.55655356,38984.0,38974.0,0.01959313]
[1643726172303,1.25,38974.0,38941.0,0.7577]
[1643726172500,1.25,38974.0,38948.0,0.5]
[1643726172501,0.05,38964.0,38948.0,0.5]
[1643726172701,0.05,38964.0,38947.0,0.00010058]
[1643726172702,0.24163956,38963.0,38947.0,0.00010058]
[1643726172903,0.15792631,38950.0,38947.0,0.00010058]
[1643726173352,0.15792631,38950.0,38943.0,0.0011]
[1643726173353,0.348487,38949.0,38943.0,0.0011]
[1643726173751,0.0431,38959.0,38947.0,0.00180832]
[1643726173950,0.24288071,38962.0,38947.0,0.00180832]
[1643726173951,0.348487,38958.0,38947.0,0.00180832]
[1643726174151,0.05,38958.0,38947.0,0.00180832]
[1643726174354,0.31554326,38948.0,38947.0,0.00180832]
[1643726174551,0.314914,38948.0,38943.0,0.2289694]
[1643726174956,0.314914,38948.0,38946.0,0.00180835]
[1643726175153,0.15694324,38950.0,38946.0,0.00180835]
[1643726175355,0.348487,38949.0,38946.0,0.00180835]
[1643726175555,0.398487,38949.0,38946.0,0.00180835]
[1643726175753,0.398487,38949.0,38943.0,0.0011]
[1643726175953,0.64741807,38949.0,38946.0,0.00180835]
[1643726176154,0.398487,38949.0,38946.0,0.00180835]
[1643726176353,0.348487,38949.0,38946.0,0.00180835]
[1643726176554,0.1,38960.0,38946.0,0.00180835]
[1643726176753,0.44093025,38959.0,38946.0,0.00180835]
[1643726176999,0.72997498,38959.0,38943.0,0.0011]
[1643726177197,0.04934325,38954.0,38951.0,0.0018082]
[1643726177397,1.34766267,38952.0,38951.0,0.0018082]
[1643726177599,0.348487,38952.0,38951.0,0.0018082]
[1643726177799,0.16802024,38952.0,38951.0,0.0018082]
[1643726178000,1.17844487,38952.0,38951.0,0.0018082]
[1643726178198,0.66650724,38952.0,38950.0,0.09857]
[1643726178402,0.26620028,38959.0,38950.0,0.10037823]
[1643726178599,0.01874501,38959.0,38950.0,0.10037823]
[1643726178901,0.01874501,38959.0,38951.0,0.61838672]
[1643726179100,0.00124125,38962.0,38951.0,0.61838672]
[1643726179298,0.00124125,38962.0,38958.0,0.25860046]
[1643726179602,0.00124125,38962.0,38956.0,0.40319265]
[1643726179603,0.15501955,38963.0,38957.0,0.23017728]
[1643726179797,0.00124141,38962.0,38959.0,0.22028905]
[1643726180001,0.00124141,38962.0,38960.0,0.348487]
[1643726180302,0.00124141,38962.0,38958.0,0.348487]
[1643726180747,0.23903762,38967.0,38956.0,0.05]
[1643726180946,0.00124152,38962.0,38958.0,0.00180797]
[1643726181147,0.09297657,38962.0,38958.0,0.00180797]
[1643726181745,0.1693414,38960.0,38958.0,0.00180797]
[1643726181947,0.07826245,38955.0,38945.0,0.29194962]
[1643726182155,0.06176245,38955.0,38948.0,0.00723381]
[1643726182948,0.09827823,38949.0,38948.0,0.00723381]
[1643726183153,0.09827823,38949.0,38943.0,0.0011]
[1643726183354,0.09827823,38949.0,38944.0,0.00723401]
[1643726183355,0.09500553,38949.0,38944.0,0.00723401]
[1643726184049,0.14086702,38945.0,38944.0,0.00723401]
[1643726184250,0.14086702,38945.0,38943.0,0.0011]
[1643726184521,0.19086702,38945.0,38943.0,0.0011]
[1643726184715,1.34984199,38943.0,38934.0,0.0031]
[1643726184915,0.348487,38942.0,38934.0,0.0031]
[1643726185110,0.27100368,38941.0,38934.0,0.0031]
[1643726185310,0.37644731,38940.0,38934.0,0.0031]
[1643726185710,0.42644731,38940.0,38934.0,0.0031]
[1643726185911,0.448487,38939.0,38934.0,0.0031]
[1643726186310,0.07891913,38936.0,38934.0,0.0031]
[1643726186711,0.13835276,38935.0,38934.0,0.0031]
[1643726186911,0.13492839,38935.0,38934.0,0.0031]
[1643726187416,1.05,38934.0,38933.0,1.44726223]
[1643726187611,0.348487,38934.0,38933.0,1.44726223]
[1643726187813,0.37381052,38935.0,38933.0,0.7068939]
[1643726188010,0.348487,38934.0,38932.0,0.00289973]
[1643726188241,0.13492839,38935.0,38932.0,0.00289973]
[1643726188442,0.02115642,38939.0,38932.0,0.00289973]
[1643726188843,0.02115642,38939.0,38932.0,0.07044973]
[1643726189041,0.02115642,38939.0,38933.0,0.83866189]
[1643726189241,0.02115642,38939.0,38934.0,0.00116981]
[1643726189447,0.02115642,38939.0,38935.0,0.348487]
[1643726190046,1.27572447,38950.0,38935.0,0.348487]
[1643726190243,1.27572447,38950.0,38934.0,0.47571409]
[1643726190446,0.13879558,38947.0,38935.0,0.16484595]
[1643726190644,0.00125727,38941.0,38935.0,0.00179849]
[1643726191447,0.13879558,38947.0,38934.0,0.47571409]
[1643726191448,0.21237512,38946.0,38936.0,0.2972458]
[1643726191642,0.0012573,38941.0,38936.0,0.00179846]
[1643726191895,0.07792404,38938.0,38936.0,0.00179846]
[1643726192293,0.348487,38937.0,38936.0,0.00179846]
[1643726195195,0.00063877,38939.0,38928.0,0.24338544]
[1643726195392,0.00063877,38939.0,38935.0,0.23713207]